bitfinex/quotes_ETHUSD_20241018
["timestamp","ask_amount","ask_price","bid_price","bid_amount"]
[1729250761012,5.47242257,2629.3,2629.2,0.10572499]
[1729250761487,5.47242257,2629.3,2628.8,5.19833015]
[1729250761686,5.47242257,2629.3,2629.2,0.10572499]
[1729250762013,5.47242257,2629.3,2628.8,5.19833015]
[1729250762312,1.66912257,2629.3,2628.8,6.21778119]
[1729250762487,1.66912257,2629.3,2628.9,0.10606298]
[1729250762815,5.47248257,2629.3,2628.9,0.10606298]
[1729250763023,5.47248257,2629.3,2628.9,3.90992298]
[1729250763203,5.47248257,2629.3,2628.9,0.10606298]
[1729250763399,5.47248257,2629.3,2628.9,0.7384464]
[1729250765031,3.80347,2629.2,2628.9,0.7384464]
[1729250767980,1.66912257,2629.3,2628.9,0.7384464]
[1729250767981,4.59382,2629.0,2628.9,0.10606298]
[1729250768190,6.26294257,2629.0,2628.9,0.10606298]
[1729250768327,3.80416,2628.7,2628.4,0.5995]
[1729250768650,5.47328257,2628.7,2628.5,0.10290473]
[1729250769228,1.66912257,2628.6,2628.5,0.10290473]
[1729250769422,6.22772257,2628.6,2628.3,0.79482015]
[1729250769661,3.80448,2628.5,2628.4,0.09628754]
[1729250769875,3.80448,2628.5,2628.2,0.79482015]
[1729250770072,6.22772257,2628.6,2628.4,0.09248498]
[1729250770287,4.5586,2628.6,2628.3,0.0925977]
[1729250770457,4.5586,2628.6,2628.5,0.09237226]
[1729250770661,4.5586,2628.6,2628.2,2.22216744]
[1729250770860,4.5586,2628.6,2628.5,0.09237226]
[1729250771068,4.5586,2628.6,2628.2,2.22216744]
[1729250771377,4.5586,2628.6,2628.5,0.09237226]
[1729250771904,1.66912257,2628.9,2628.5,0.5995]
[1729250772204,1.66912257,2628.9,2628.5,0.69187226]
[1729250772496,1.66912257,2628.9,2628.6,0.45724532]
[1729250772849,6.30422257,2629.0,2628.7,0.09214685]
[1729250773277,1.66912257,2628.9,2628.5,0.5995]
[1729250773511,5.47292257,2629.0,2628.8,0.09203416]
[1729250773680,5.47292257,2629.0,2628.5,0.5995]
[1729250773881,5.47292257,2629.0,2628.9,0.09192148]
[1729250774149,3.80395,2628.9,2628.5,0.5995]
[1729250774374,5.47307257,2628.9,2628.5,0.5995]
[1729250776236,5.47321257,2628.8,2628.5,0.5995]
[1729250776495,5.47331257,2628.7,2628.3,1.39432015]
[1729250776697,3.80419,2628.7,2628.4,0.77425882]
[1729250776863,6.27941257,2628.8,2628.4,0.77425882]
[1729250777767,3.80417,2628.7,2628.4,0.77425882]
[1729250778464,2.47532257,2628.8,2628.4,0.77425882]
[1729250778655,3.80403,2628.8,2628.5,0.07607978]
[1729250778851,6.24255257,2629.0,2628.5,0.68101165]
[1729250779097,3.80388,2628.9,2628.6,0.5995]
[1729250779252,5.47300257,2628.9,2628.6,0.5995]
[1729250779590,5.47300257,2628.9,2628.6,1.18542505]
[1729250779956,5.47300257,2628.9,2628.7,0.09214685]
[1729250782768,3.80401,2628.8,2628.7,0.09214685]
[1729250782971,5.47313257,2628.8,2628.7,0.09214685]
[1729250783648,5.47313257,2628.8,2628.5,0.60493187]
[1729250783853,5.47313257,2628.8,2628.6,0.09228499]
[1729250785617,3.80401,2628.8,2628.6,0.09228499]
[1729250785820,5.47313257,2628.8,2628.6,0.09228499]
[1729250786120,3.80401,2628.8,2628.6,0.09228499]
[1729250787797,5.47313257,2628.8,2628.6,0.09228499]
[1729250787997,3.80401,2628.8,2628.6,0.09228499]
[1729250789013,5.47299257,2628.9,2628.6,0.60241368]
[1729250790210,3.80402,2628.8,2628.6,0.60241368]
[1729250793001,3.80416,2628.7,2628.6,0.09228499]
[1729250793301,5.47328257,2628.7,2628.4,0.5995]
[1729250793518,3.80416,2628.7,2628.6,0.09227439]
[1729250793697,3.80446,2628.5,2628.3,0.79482015]
[1729250793918,3.80446,2628.5,2628.3,0.20441354]
[1729250794228,6.22758257,2628.7,2628.3,0.20441354]
[1729250794229,3.8043,2628.6,2628.3,0.20441354]
[1729250794737,3.8043,2628.6,2628.4,0.09249981]
[1729250794919,3.80445,2628.5,2628.4,0.09249981]
[1729250795229,3.80445,2628.5,2628.1,0.05708506]
[1729250795230,3.80445,2628.5,2628.1,0.85190521]
[1729250795432,3.80445,2628.5,2628.4,0.09249981]
[1729250795637,3.80445,2628.5,2628.1,0.05708506]
[1729250795939,3.80445,2628.5,2628.2,7.6095]
[1729250796245,3.80445,2628.5,2628.2,7.70222527]
[1729250800161,3.80474,2628.3,2628.2,7.70222527]
[1729250804223,5.47386257,2628.3,2628.2,7.70222527]
[1729250804750,7.23467883,2628.3,2628.2,7.70222527]
[1729250807470,6.22466257,2628.3,2628.2,7.70222527]
[1729250807629,3.80474,2628.3,2628.2,7.70222527]
[1729250807975,3.8046,2628.4,2628.2,7.70222527]
[1729250808831,7.60929,2628.4,2628.2,7.70222527]
[1729250810275,3.80474,2628.3,2628.2,7.70222527]
[1729250812266,6.26346257,2628.3,2628.2,7.70222527]
[1729250812895,7.27026883,2628.3,2628.2,7.70222527]
[1729250813457,7.27026883,2628.3,2628.2,7.6095]
[1729250813861,7.27026883,2628.3,2628.2,7.69926729]
[1729250829218,6.26346257,2628.3,2628.2,7.69926729]
[1729250829505,3.80474,2628.3,2628.2,7.69926729]
[1729250829709,5.47386257,2628.3,2628.2,7.69926729]
[1729250831000,6.30336257,2628.3,2628.2,7.69926729]
[1729250836749,5.47386257,2628.3,2628.2,7.69926729]
[1729250841754,3.80474,2628.3,2628.2,7.69926729]
[1729250841952,5.47386257,2628.3,2628.2,7.69926729]
[1729250854379,3.80474,2628.3,2628.2,7.69926729]
[1729250854873,5.47386257,2628.3,2628.2,7.69926729]
[1729250856170,3.80474,2628.3,2628.2,7.69926729]
[1729250857057,5.47386257,2628.3,2628.2,7.69926729]
[1729250864590,6.23156257,2628.3,2628.2,7.69926729]
[1729250870086,5.47386257,2628.3,2628.2,7.69926729]
[1729250871591,3.80474,2628.3,2628.2,8.29876729]
[1729250871792,3.80445,2628.5,2628.2,9.12864402]
[1729250872093,3.80445,2628.5,2628.2,9.92346417]
[1729250872094,3.80452,2628.5,2628.2,9.92346417]
[1729250872296,3.80463,2628.4,2628.2,9.92346417]
[1729250872450,3.80463,2628.4,2628.2,9.12864402]
[1729250872648,3.80474,2628.3,2628.2,7.69926729]
[1729250872960,6.23976257,2628.3,2628.2,7.69926729]
[1729250874284,5.47386257,2628.3,2628.2,7.69926729]
[1729250875378,3.80474,2628.3,2628.2,7.69926729]
[1729250877180,5.47386257,2628.3,2628.2,7.69926729]
[1729250884317,3.80474,2628.3,2628.2,7.69926729]
[1729250885305,7.60931,2628.4,2628.2,8.29876729]
[1729250885608,9.27843257,2628.4,2628.2,8.29876729]
[1729250885809,3.80474,2628.3,2628.2,8.29876729]
[1729250886006,5.47372257,2628.4,2628.2,8.29876729]
[1729250886195,3.8046,2628.4,2628.2,8.29876729]
[1729250886510,3.80474,2628.3,2628.2,8.29876729]
[1729250891387,3.80474,2628.3,2628.2,9.20812603]
[1729250891710,3.8046,2628.4,2628.2,9.20812603]
[1729250892994,3.7946,2628.4,2628.2,9.20812603]
[1729250894988,5.46372257,2628.4,2628.2,9.20812603]
[1729250895187,5.46372257,2628.4,2628.2,7.69926729]
[1729250895390,3.7946,2628.4,2628.2,7.69926729]
[1729250895914,5.46372257,2628.4,2628.2,7.69926729]
[1729250897007,3.7946,2628.4,2628.2,7.69926729]
[1729250898152,5.46372257,2628.4,2628.2,7.69926729]
[1729250901192,3.7946,2628.4,2628.2,7.69926729]
[1729250901413,5.47359257,2628.5,2628.2,7.69926729]
[1729250901697,3.80459,2628.4,2628.2,7.69926729]
[1729250914546,5.47371257,2628.4,2628.2,7.69926729]
[1729250915251,3.80474,2628.3,2628.2,7.69926729]
[1729250915402,5.47372257,2628.4,2628.2,7.69926729]
[1729250916207,3.80474,2628.3,2628.2,7.69926729]
[1729250916410,5.47378257,2628.4,2628.2,7.69926729]
[1729250917309,3.80474,2628.3,2628.2,7.69926729]
[1729250917513,5.47386257,2628.3,2628.2,7.69926729]
[1729250918351,6.24976257,2628.3,2628.2,7.69926729]
[1729250919535,7.25519983,2628.3,2628.2,7.69926729]
[1729250926252,6.24976257,2628.3,2628.2,7.69926729]
[1729250946590,7.90878514,2628.3,2628.2,7.69926729]
[1729250947133,7.90878514,2628.3,2628.2,7.6095]
[1729250947292,7.90878514,2628.3,2628.2,7.69935417]
[1729250947837,6.23966257,2628.3,2628.2,7.69935417]
[1729250948045,5.57696726,2628.3,2628.2,7.69935417]
[1729250948198,7.24608983,2628.3,2628.2,7.69935417]
[1729250962572,8.9252124,2628.3,2628.2,7.69935417]
[1729250962937,7.25608983,2628.3,2628.2,7.6095]
[1729250963140,8.9252124,2628.3,2628.2,7.69645798]
[1729250963961,7.25608983,2628.3,2628.2,7.69645798]
[1729250964973,8.9252124,2628.3,2628.2,7.69645798]
[1729250966937,8.9252124,2628.3,2628.2,1.98913798]
[1729250967142,3.80604,2627.4,2627.3,0.5995]
[1729250970181,5.47516257,2627.4,2627.3,0.5995]
[1729250974773,5.47516257,2627.4,2627.3,0.68758183]
[1729250975968,3.80604,2627.4,2627.3,0.68758183]
[1729250976889,5.47516257,2627.4,2627.3,0.68758183]
[1729250978745,3.80604,2627.4,2627.3,0.68758183]
[1729250981497,5.47516257,2627.4,2627.3,0.68758183]
[1729250982282,5.47502257,2627.5,2627.3,0.68758183]
[1729250983967,7.61159,2627.6,2627.3,0.68758183]
[1729250984168,5.47488257,2627.6,2627.3,0.68758183]
[1729250984474,5.47503257,2627.5,2627.3,0.68758183]
[1729250984886,3.80591,2627.5,2627.3,0.68758183]
[1729250985179,5.47503257,2627.5,2627.3,0.68758183]
[1729250985695,3.80591,2627.5,2627.3,0.68758183]
[1729250987171,9.28076257,2627.6,2627.3,0.68758183]
[1729250987371,3.8059,2627.5,2627.3,0.68758183]
[1729250987686,5.47488257,2627.6,2627.3,0.68758183]
[1729250988091,3.80589,2627.5,2627.3,0.68758183]
[1729250990789,5.47501257,2627.5,2627.3,0.68758183]
[1729250992377,5.47516257,2627.4,2627.3,0.68758183]
[1729250992575,3.80604,2627.4,2627.3,0.68758183]
[1729250994110,5.47516257,2627.4,2627.3,0.08808183]
[1729250994466,9.28129257,2627.4,2627.1,1.39730874]
[1729250994706,1.66912257,2627.2,2627.1,1.39730874]
[1729250994863,5.47534257,2627.3,2627.1,1.39730874]
[1729250995064,5.47534257,2627.3,2626.9,5.00336311]
[1729250995065,5.47551257,2627.2,2627.0,0.79780874]
[1729250995314,1.66912257,2627.1,2627.0,0.79780874]
[1729250995509,1.66912257,2627.1,2626.9,0.5995]
[1729250995510,5.47559257,2627.1,2626.8,0.79780874]
[1729250995806,1.66912257,2626.9,2626.7,1.39730874]
[1729250997301,1.66912257,2626.9,2626.7,0.5995]
[1729250997607,1.66912257,2626.9,2626.7,1.39730874]
[1729250997790,1.66912257,2626.9,2626.5,5.00392311]
[1729250997791,5.47603257,2626.8,2626.6,0.79780874]
[1729250998016,5.47603257,2626.8,2626.5,1.39730874]
[1729250998173,3.80691,2626.8,2626.5,1.39730874]
[1729250999676,5.47603257,2626.8,2626.5,1.39730874]
[1729250999870,5.47603257,2626.8,2626.5,0.5995]
[1729251000091,3.80691,2626.8,2626.5,0.5995]
[1729251000373,4.58515,2627.0,2626.5,4.48297243]
[1729251000374,6.25427257,2627.0,2626.5,4.48297243]
[1729251000583,3.80665,2627.0,2626.5,7.74133804]
[1729251000783,1.66912257,2627.1,2626.6,3.80711]
[1729251000984,5.47553257,2627.2,2626.7,4.40655]
[1729251001194,5.47560257,2627.1,2626.7,4.40655]
[1729251001713,1.66912257,2627.2,2626.8,3.8069]
[1729251001896,5.47544257,2627.3,2626.9,0.5995]
[1729251002073,1.66912257,2627.2,2626.9,0.5995]
[1729251004333,4.60314,2627.4,2626.9,4.40626]
[1729251004528,1.66912257,2627.3,2626.9,4.40626]
[1729251005391,11.156,2627.5,2626.9,6.07538257]
[1729251005593,5.47516257,2627.4,2627.0,0.68731913]
[1729251007113,1.66912257,2627.4,2627.0,0.68731913]
[1729251007502,1.66912257,2627.4,2627.0,4.49393913]
[1729251007825,1.66912257,2627.4,2627.0,4.57006387]
[1729251008025,1.66912257,2627.4,2627.1,0.97740426]
[1729251008338,1.66912257,2627.4,2627.2,0.5995]
[1729251008638,5.47501257,2627.5,2627.2,0.5995]
[1729251010358,1.66912257,2627.5,2627.2,0.5995]
[1729251010520,0.7811,2627.6,2627.2,0.67562442]
[1729251010521,3.80578,2627.6,2627.2,0.67562442]
[1729251010720,5.47490257,2627.6,2627.3,0.54594287]
[1729251010917,1.66912257,2627.6,2627.3,0.54594287]
[1729251011221,5.47483257,2627.7,2627.3,0.54594287]
[1729251011937,1.66912257,2627.6,2627.3,0.54594287]
[1729251013060,1.66912257,2627.5,2627.3,0.54594287]
[1729251013360,1.66912257,2627.6,2627.3,0.54594287]
[1729251013687,3.80571,2627.7,2627.2,4.4058]
[1729251013963,1.66912257,2627.6,2627.2,4.4058]
[1729251014120,1.66912257,2627.5,2627.2,4.4058]
[1729251014320,1.66912257,2627.6,2627.2,4.4058]
[1729251014555,1.66912257,2627.6,2627.2,5.57718372]
[1729251015845,1.66912257,2627.4,2627.2,1.77088372]
[1729251016050,1.66912257,2627.4,2627.2,0.5995]
[1729251016865,3.80647,2627.2,2627.0,1.39730874]
[1729251017158,5.47567257,2627.1,2626.8,0.5995]
[1729251017366,1.66912257,2627.0,2626.8,0.5995]
[1729251017656,4.59281,2627.4,2626.8,0.5995]
[1729251017966,5.47548257,2627.2,2626.8,0.5995]
[1729251018171,1.66912257,2627.1,2626.8,0.5995]
[1729251018375,5.47548257,2627.2,2626.8,0.5995]
[1729251018660,5.47560257,2627.1,2626.9,7.6132]
[1729251019463,5.47552257,2627.2,2626.9,7.6132]
[1729251019627,1.66912257,2627.1,2626.9,7.6132]
[1729251019820,5.47552257,2627.2,2626.9,7.6132]
[1729251021259,9.28194257,2627.2,2626.9,7.6132]
[1729251021436,5.47552257,2627.2,2626.9,7.6132]
[1729251021659,9.28193257,2627.2,2626.9,7.6132]
[1729251022277,5.47552257,2627.2,2626.9,7.6132]
[1729251023170,3.8064,2627.2,2626.9,7.6132]
[1729251023670,1.66912257,2627.3,2626.9,9.01461019]
[1729251023857,7.61226,2627.4,2627.0,0.5995]
[1729251024057,9.28138257,2627.4,2627.0,0.5995]
[1729251024372,5.47531257,2627.3,2627.0,0.5995]
[1729251025134,5.47555257,2627.2,2626.9,7.6132]
[1729251025476,5.47560257,2627.1,2626.9,7.6132]
[1729251026475,0.7924,2627.3,2626.9,7.6132]
[1729251026476,5.47574257,2627.0,2626.9,7.6132]
[1729251027346,5.47562257,2627.1,2626.9,7.6132]
[1729251028587,1.66912257,2627.1,2626.9,7.6132]
[1729251028792,1.66912257,2627.2,2626.9,7.6132]
[1729251029214,5.47552257,2627.2,2626.9,7.6132]
[1729251032590,3.8064,2627.2,2627.0,0.08860714]
[1729251033230,3.80635,2627.2,2627.0,0.08860714]
[1729251034289,5.47547257,2627.2,2627.0,0.08860714]
[1729251035597,3.80635,2627.2,2627.0,0.08860714]
[1729251035805,5.47547257,2627.2,2627.0,0.08860714]
[1729251037620,3.80647,2627.1,2627.0,0.08860714]
[1729251038618,5.47559257,2627.1,2627.0,0.08860714]
[1729251039022,3.80647,2627.1,2627.0,0.08860714]
[1729251040567,5.47559257,2627.1,2627.0,0.08860714]
[1729251041364,1.66912257,2627.2,2627.0,0.08860714]
[1729251041657,3.80605,2627.4,2627.0,0.91873785]
[1729251041835,5.47517257,2627.4,2627.1,0.5995]
[1729251042223,5.47517257,2627.4,2627.2,0.08842763]
[1729251042934,1.66912257,2627.3,2627.2,0.08842763]
[1729251043140,5.47517257,2627.4,2627.2,0.08842763]
[1729251046366,1.66912257,2627.3,2627.2,0.08842763]
[1729251047167,3.80605,2627.4,2627.2,0.08842763]
[1729251047168,5.47517257,2627.4,2627.2,0.08842763]
[1729251048666,11.15533,2627.9,2627.2,0.08842763]
[1729251048667,3.80563,2627.7,2627.2,0.08842763]
[1729251048825,5.47495257,2627.6,2627.3,0.5995]
[1729251049257,5.47495257,2627.6,2627.4,0.085182]
[1729251049628,3.80583,2627.6,2627.4,0.085182]
[1729251049830,1.66912257,2627.6,2627.4,0.085182]
[1729251052725,1.66912257,2627.5,2627.4,0.085182]
[1729251053171,5.47501257,2627.5,2627.4,0.085182]
[1729251053530,5.47501257,2627.5,2627.1,4.40596]
[1729251053767,1.66912257,2627.4,2627.2,7.69820763]
[1729251055028,1.66912257,2627.5,2627.2,7.69820763]
[1729251057287,5.47503257,2627.5,2627.2,7.69820763]
[1729251057791,1.66912257,2627.4,2627.2,7.69820763]
[1729251058290,5.47530257,2627.3,2627.2,7.69820763]
[1729251058449,6.48217883,2627.3,2627.2,7.69820763]
[1729251059915,1.66912257,2627.3,2627.2,7.69820763]
[1729251060041,3.80618,2627.3,2627.2,7.69820763]
[1729251060243,5.47530257,2627.3,2627.2,7.69820763]
[1729251060857,7.97522514,2627.3,2627.2,7.69820763]
[1729251061083,6.30610257,2627.3,2627.2,7.64820763]
[1729251061291,7.31731883,2627.3,2627.2,7.64820763]
[1729251062543,6.30610257,2627.3,2627.2,7.64820763]
[1729251062744,5.47518257,2627.4,2627.2,7.64820763]
[1729251063371,0.7851,2627.5,2627.2,7.64820763]
[1729251063372,5.47530257,2627.3,2627.2,7.64820763]
[1729251064782,1.66912257,2627.3,2627.2,7.64820763]
[1729251066842,5.47530257,2627.3,2627.2,7.64820763]
[1729251068401,1.66912257,2627.3,2627.2,7.64820763]
[1729251068602,5.47530257,2627.3,2627.2,7.64820763]
[1729251069076,1.66912257,2627.3,2627.2,7.64820763]
[1729251072208,5.47517257,2627.4,2627.2,7.64820763]
[1729251072409,1.66912257,2627.5,2627.2,7.64820763]
[1729251072570,0.7784,2627.7,2627.2,7.64820763]
[1729251072571,3.80562,2627.7,2627.2,9.07247839]
[1729251072766,3.80576,2627.6,2627.2,9.07247839]
[1729251073028,3.80576,2627.6,2627.3,1.36767471]
[1729251073317,1.66912257,2627.6,2627.3,1.36767471]
[1729251073517,1.66912257,2627.6,2627.4,0.08219704]
[1729251073682,3.80562,2627.7,2627.4,0.08219704]
[1729251073683,5.47474257,2627.7,2627.4,0.08219704]
[1729251074009,1.66912257,2627.6,2627.2,13.5911995]
[1729251074212,7.61137,2627.7,2627.5,0.08208424]
[1729251074410,1.66912257,2627.6,2627.2,8.96010874]
[1729251074719,1.66912257,2627.5,2627.2,8.96010874]
[1729251075211,1.66912257,2627.4,2627.2,8.96010874]
[1729251076274,1.66912257,2627.4,2627.3,0.08230985]
[1729251076584,1.66912257,2627.4,2627.2,8.96010874]
[1729251076809,1.66912257,2627.4,2627.3,0.08230985]
[1729251077173,1.66912257,2627.4,2627.2,8.96010874]
[1729251077470,1.66912257,2627.4,2627.3,0.08230985]
[1729251077672,1.66912257,2627.4,2627.2,8.1623]
[1729251077867,1.66912257,2627.4,2627.3,0.08230985]
[1729251078068,1.66912257,2627.4,2627.2,8.1623]
[1729251078271,1.66912257,2627.4,2627.3,0.08230985]
[1729251078709,1.66912257,2627.4,2627.2,8.1623]
[1729251079074,1.66912257,2627.4,2627.3,0.08230985]
[1729251079276,1.66912257,2627.4,2627.2,8.1623]
[1729251079475,1.66912257,2627.4,2627.3,0.08230985]
[1729251079713,1.66912257,2627.4,2627.2,8.1623]
[1729251080010,1.66912257,2627.4,2627.3,0.0823015]
[1729251080170,5.47502257,2627.5,2627.3,0.0823015]
[1729251080370,5.47502257,2627.5,2627.2,8.1623]
[1729251080704,5.47502257,2627.5,2627.3,0.0823015]
[1729251080902,5.47502257,2627.5,2627.2,8.1623]
[1729251081089,5.47502257,2627.5,2627.3,0.0823015]
[1729251081290,5.47502257,2627.5,2627.2,8.1623]
[1729251081484,5.47502257,2627.5,2627.3,0.0823015]
[1729251081685,5.47502257,2627.5,2627.2,8.1623]
[1729251081913,5.47502257,2627.5,2627.3,0.0823015]
[1729251082119,1.66912257,2627.4,2627.2,7.5628]
[1729251082301,5.47516257,2627.4,2627.3,0.0823015]
[1729251082500,5.47516257,2627.4,2627.2,7.5628]
[1729251082687,5.47516257,2627.4,2627.3,0.08225766]
[1729251083017,5.47516257,2627.4,2627.2,7.5628]
[1729251091107,5.47516257,2627.4,2627.3,0.08225766]
[1729251091306,5.47516257,2627.4,2627.2,7.5628]
[1729251091628,5.47516257,2627.4,2627.3,0.08225766]
[1729251092143,5.47516257,2627.4,2627.2,7.5628]
[1729251092144,3.80618,2627.3,2627.2,7.5628]
[1729251092441,5.47530257,2627.3,2627.2,7.5628]
[1729251093307,4.63855,2627.6,2627.2,7.5628]
[1729251093620,6.30765257,2627.6,2627.2,7.5628]
[1729251093831,1.66912257,2627.5,2627.2,7.5628]
[1729251094725,6.30765257,2627.6,2627.2,7.5628]
[1729251094907,3.80554,2627.8,2627.2,7.5628]
[1729251094908,4.56054,2627.8,2627.2,12.30459809]
[1729251095108,5.47481257,2627.7,2627.2,12.30459809]
[1729251095746,1.66912257,2627.6,2627.2,12.30459809]
[1729251096609,1.66912257,2627.6,2627.3,0.5995]
[1729251096812,1.66912257,2627.6,2627.4,7.6621]
[1729251097650,1.66912257,2627.7,2627.4,7.6621]
[1729251097809,5.07788224,2628.2,2627.6,2.26862257]
[1729251097810,3.80511,2628.1,2627.6,2.26862257]
[1729251098008,5.47423257,2628.1,2627.6,4.48128484]
[1729251098219,5.47423257,2628.1,2627.6,6.44256577]
[1729251098417,1.66912257,2628.1,2627.7,3.80559]
[1729251099514,1.66912257,2628.2,2627.8,3.80537]
[1729251099827,1.66912257,2628.1,2627.8,3.80537]
[1729251100724,1.66912257,2628.1,2627.8,4.98946235]
[1729251101455,1.66912257,2628.2,2627.8,4.98946235]
[1729251102020,3.8044,2628.6,2627.8,4.98946235]
[1729251102021,3.80452,2628.5,2628.0,5.47421257]
[1729251102224,5.47364257,2628.5,2628.0,3.80509]
[1729251102444,3.80452,2628.5,2628.0,5.47421257]
[1729251102759,9.27819257,2628.5,2627.9,6.07384257]
[1729251102943,9.27819257,2628.5,2628.0,0.72579349]
[1729251102944,1.66912257,2628.4,2628.0,0.72579349]
[1729251103920,1.66912257,2628.4,2628.1,7.6601]
[1729251104120,5.47364257,2628.5,2628.1,7.6601]
[1729251104359,9.27822257,2628.5,2628.1,7.6601]
[1729251104944,1.66912257,2628.4,2628.1,7.6601]
[1729251105864,5.47373257,2628.4,2628.1,7.6601]
[1729251106241,5.47373257,2628.4,2628.2,0.08118214]
[1729251113382,3.80452,2628.5,2628.2,0.08118214]
[1729251113686,1.66912257,2628.6,2628.3,0.5995]
[1729251113844,5.47344257,2628.6,2628.3,0.5995]
[1729251114183,1.66912257,2628.5,2628.4,0.08077925]
[1729251116552,5.47344257,2628.6,2628.4,0.08077925]
[1729251117390,1.66912257,2628.5,2628.4,0.08077925]
[1729251117691,5.47357257,2628.5,2628.4,0.08077925]
[1729251120488,5.47357257,2628.5,2628.1,8.2596]
[1729251120655,3.80445,2628.5,2628.4,0.08077925]
[1729251120856,3.80445,2628.5,2628.1,8.2596]
[1729251121065,3.80445,2628.5,2628.4,0.08077925]
[1729251121260,5.47357257,2628.5,2628.1,8.2596]
[1729251121457,3.80445,2628.5,2628.4,0.08077925]
[1729251121656,3.80445,2628.5,2628.1,8.2596]
[1729251121903,3.80445,2628.5,2628.4,0.08077925]
[1729251122079,3.80445,2628.5,2628.1,8.2596]
[1729251122393,3.80445,2628.5,2628.1,9.846595]
[1729251122598,3.80445,2628.5,2628.2,0.08100471]
[1729251122781,1.66912257,2628.4,2628.2,0.08100471]
[1729251128287,1.66912257,2628.3,2628.2,0.08100471]
[1729251129011,5.47386257,2628.3,2628.2,0.08100471]
[1729251129184,6.47909983,2628.3,2628.2,0.08100471]
[1729251129509,7.25299983,2628.3,2628.2,0.08100471]
[1729251137301,7.25299983,2628.3,2628.2,0.08100471]
[1729251139992,8.9221224,2628.3,2628.2,0.08100471]
[1729251141280,8.9221224,2628.3,2628.2,4.71e-06]
[1729251141611,8.9221224,2628.3,2628.1,0.05002]
[1729251141612,4.62818,2628.2,2628.1,0.05002]
[1729251141820,4.62818,2628.2,2627.1,0.05710869]
[1729251141821,3.80633,2627.2,2627.1,0.05710869]
[1729251141997,5.47545257,2627.2,2627.1,0.05710869]
[1729251142199,3.80657,2627.1,2626.6,1.39730874]
[1729251142397,1.66912257,2627.0,2626.6,0.5995]
[1729251142883,3.80657,2627.1,2626.6,4.40661]
[1729251142884,1.66912257,2627.1,2626.6,4.40661]
[1729251143084,1.66912257,2627.0,2626.7,0.90116587]
[1729251143288,1.66912257,2627.1,2626.7,0.90116587]
[1729251144543,1.66912257,2627.0,2626.7,0.90116587]
[1729251144899,1.66912257,2627.1,2626.7,0.90116587]
[1729251145731,3.80635,2627.2,2626.7,0.90116587]
[1729251145732,1.66912257,2627.0,2626.7,0.90116587]
[1729251145939,1.66912257,2627.1,2626.7,0.90116587]
[1729251146230,1.66912257,2627.0,2626.6,0.5995]
[1729251146639,1.66912257,2627.0,2626.6,4.40662]
[1729251148095,1.66912257,2626.9,2626.6,0.5995]
[1729251148296,1.66912257,2627.0,2626.6,0.5995]
[1729251148499,1.66912257,2627.1,2626.6,4.40666]
[1729251148750,1.66912257,2627.1,2626.7,3.80703]
[1729251148900,3.80633,2627.2,2626.7,3.80703]
[1729251148901,5.47546257,2627.2,2626.7,3.80703]
[1729251149101,5.47546257,2627.2,2626.8,0.07473179]
[1729251149396,1.66912257,2627.1,2626.7,3.80703]
[1729251149596,5.47546257,2627.2,2626.8,0.07473179]
[1729251149837,5.47546257,2627.2,2626.8,0.54695641]
[1729251150039,5.47546257,2627.2,2626.9,0.07461894]
[1729251150241,1.66912257,2627.1,2626.9,0.07461894]
[1729251151120,5.47546257,2627.2,2626.9,0.07461894]
[1729251152435,5.47539257,2627.3,2626.9,0.07461894]
[1729251152614,1.66912257,2627.2,2626.9,1.11696548]
[1729251152939,5.47548257,2627.2,2626.9,0.67411894]
[1729251154268,3.80636,2627.2,2626.9,0.67411894]
[1729251154713,5.47548257,2627.2,2626.9,0.67411894]
[1729251156543,1.66912257,2627.2,2626.9,0.67411894]
[1729251157442,5.47547257,2627.2,2626.9,0.67411894]
[1729251161451,3.80635,2627.2,2626.9,0.67411894]
[1729251161653,0.8033,2627.4,2626.9,0.67411894]
[1729251161654,3.806,2627.5,2626.9,7.20802937]
[1729251161820,9.28112257,2627.5,2627.0,3.80655]
[1729251162019,5.47510257,2627.5,2627.0,3.80655]
[1729251162354,5.47509257,2627.5,2627.0,3.80655]
[1729251162653,5.47509257,2627.5,2627.1,0.0746041]
[1729251162832,5.47509257,2627.5,2627.1,0.6284723]
[1729251163029,3.80597,2627.5,2627.1,0.6284723]
[1729251163350,5.47509257,2627.5,2627.1,0.6284723]
[1729251164161,4.62611,2627.7,2627.2,2.34474452]
[1729251164501,1.66912257,2627.8,2627.4,3.80597]
[1729251164657,6.25263257,2627.9,2627.5,0.5995]
[1729251164959,6.25263257,2627.9,2627.5,0.67361562]
[1729251165157,2.44722257,2627.9,2627.5,0.67361562]
[1729251165375,1.66912257,2627.8,2627.5,0.67361562]
[1729251165542,1.66912257,2627.8,2627.5,1.46735364]
[1729251166451,1.66912257,2627.7,2627.5,1.46735364]
[1729251166623,1.66912257,2627.7,2627.5,0.67361562]
[1729251168447,1.66912257,2627.8,2627.5,0.67361562]
[1729251170161,5.47458257,2627.8,2627.5,0.67361562]
[1729251170372,1.66912257,2627.7,2627.5,0.67361562]
[1729251170555,5.47458257,2627.8,2627.5,0.67361562]
[1729251170970,1.66912257,2627.7,2627.5,0.67361562]
[1729251171180,1.66912257,2627.6,2627.5,0.67361562]
[1729251171476,5.47474257,2627.7,2627.5,0.67361562]
[1729251171642,3.80562,2627.7,2627.5,0.67361562]
[1729251172011,5.47474257,2627.7,2627.5,0.67361562]
[1729251173385,1.66912257,2627.7,2627.5,0.67361562]
[1729251174989,4.60985,2627.6,2627.5,0.07411562]
[1729251175157,7.28743183,2627.6,2627.5,0.07411562]
[1729251175359,3.80592,2627.5,2627.0,4.40609]
[1729251175662,5.47504257,2627.5,2627.0,4.40609]
[1729251176389,3.80592,2627.5,2627.0,4.40609]
[1729251177212,3.80592,2627.5,2627.0,4.39609]
[1729251177889,5.47504257,2627.5,2627.0,4.39609]
[1729251178092,5.47504257,2627.5,2627.0,5.4685618]
[1729251179086,1.66912257,2627.2,2626.9,0.05711244]
[1729251179295,1.66912257,2627.1,2626.9,0.05711244]
[1729251179592,4.57006,2627.3,2626.9,0.05711244]
[1729251179593,1.66912257,2627.2,2626.9,0.05711244]
[1729251179752,6.23918257,2627.3,2626.9,0.05711244]
[1729251180286,6.23918257,2627.3,2626.9,0.64661244]
[1729251180587,3.80597,2627.5,2626.9,0.64661244]
[1729251180588,5.47518257,2627.4,2626.9,4.52949768]
[1729251180787,1.66912257,2627.4,2626.9,9.035605]
[1729251180976,5.47517257,2627.4,2626.9,5.15271976]
[1729251181167,5.47517257,2627.4,2627.0,0.0745536]
[1729251185862,1.66912257,2627.3,2627.0,0.0745536]
[1729251188018,3.80619,2627.3,2627.0,0.0745536]